fUST/lending_fUST_20240831
["ID","MTS","AMOUNT","RATE_DAILY","PERIOD"]
[336698016,1725037871357,-500.0,0.00035437,31]
[336698017,1725037871366,-503.64410804,0.00035437,31]
[336698018,1725037871375,-500.0,0.00035437,31]
[336698019,1725037871384,-500.0,0.00035437,31]
[336698020,1725037871476,-501.55899695,0.00035437,31]
[336698021,1725037871499,-500.0,0.00035437,31]
[336698022,1725037871509,-500.0,0.00035437,31]
[336698023,1725037871518,-500.0,0.00035437,31]
[336698024,1725037871528,-500.0,0.00035437,31]
[336698025,1725037871537,-500.0,0.00035437,31]
[336698026,1725037871547,-500.0,0.00035437,31]
[336698027,1725037871556,-500.0,0.00035437,31]
[336698028,1725037871565,-500.0,0.00035437,31]
[336698029,1725037871574,-500.0,0.00035437,31]
[336698030,1725037871583,-500.0,0.00035437,31]
[336698031,1725037871592,-500.0,0.00035437,31]
[336698032,1725037871602,-500.0,0.00035437,31]
[336698033,1725037871611,-500.0,0.00035437,14]
[336698034,1725037871620,-500.0,0.00035437,31]
[336698035,1725037871629,-500.0,0.00035437,31]
[336698036,1725037871639,-500.0,0.00035437,31]
[336698037,1725037871649,-500.0,0.00035437,7]
[336698038,1725037871659,-500.0,0.00035437,20]
[336698039,1725037871668,-500.0,0.00035437,31]
[336698040,1725037871678,-500.0,0.00035437,31]
[336698041,1725037871688,-500.0,0.00035437,31]
[336698042,1725037871698,-500.0,0.00035437,31]
[336698043,1725037871708,-500.0,0.00035437,31]
[336698044,1725037871717,-500.0,0.00035437,31]
[336698045,1725037871727,-500.0,0.00035437,31]
[336698046,1725037871736,-232.52979759,0.00035437,31]
[336698047,1725037871746,-500.0,0.00035437,31]
[336698048,1725037871756,-500.0,0.00035437,31]
[336698049,1725037871766,-500.0,0.00035437,31]
[336698050,1725037871775,-500.0,0.00035437,31]
[336698051,1725037871785,-500.0,0.00035437,31]
[336698052,1725037871794,-501.70415302,0.00035437,31]
[336698053,1725037871804,-500.0,0.00035437,31]
[336698054,1725037871814,-500.0,0.00035437,31]
[336698055,1725037871823,-500.0,0.00035437,31]
[336698056,1725037871832,-500.0,0.00035437,31]
[336698057,1725037871841,-500.0,0.00035437,31]
[336698058,1725037871851,-500.0,0.00035437,31]
[336698059,1725037871860,-500.0,0.00035477,31]
[336698060,1725037871870,-16342.81527594,0.00035478,2]
[336698061,1725037871879,-151.0,0.00035478,14]
[336698062,1725037871889,-500.0,0.00035488,31]
[336698063,1725037871898,-151.0,0.00035489,14]
[336698064,1725037871908,-500.0,0.00035489,31]
[336698065,1725037871918,-500.0,0.00035489,31]
[336698066,1725037871927,-500.0,0.00035489,31]
[336698067,1725037871937,-500.0,0.00035489,31]
[336698068,1725037871947,-500.0,0.00035489,31]
[336698069,1725037871956,-500.0,0.00035489,31]
[336698070,1725037871966,-500.0,0.00035489,31]
[336698071,1725037871976,-500.0,0.00035489,31]
[336698072,1725037871989,-500.0,0.00035489,31]
[336698073,1725037871998,-500.0,0.00035489,31]
[336698074,1725037872008,-500.0,0.00035489,31]
[336698075,1725037872023,-150.01,0.00035499,2]
[336698076,1725037872033,-1833.56973321,0.00035499,2]
[336698077,1725037872043,-500.0,0.00035499,31]
[336698078,1725037872052,-500.0,0.00035499,31]
[336698079,1725037872064,-539.14930509,0.00035499,31]
[336698080,1725037872074,-10000.0,0.000355,20]
[336698081,1725037872084,-50030.0,0.000355,7]
[336698082,1725037872094,-150.112233,0.000355,7]
[336698083,1725037872103,-150.112233,0.000355,7]
[336698084,1725037872113,-151.0,0.000355,14]
[336698085,1725037872123,-3263.8,0.00035507,31]
[336698086,1725037872132,-500.0,0.00035507,31]
[336698087,1725037872142,-500.0,0.00035507,31]
[336698088,1725037872151,-1082.18,0.00035507,31]
[336698089,1725037872161,-500.0,0.00035507,31]
[336698090,1725037872171,-500.0,0.00035507,31]
[336698091,1725037872180,-4469.18,0.00035507,31]
[336698092,1725037872190,-500.0,0.00035507,31]
[336698093,1725037872199,-500.0,0.00035507,31]
[336698094,1725037872209,-500.0,0.00035507,31]
[336698095,1725037872218,-2919.22,0.00035507,31]
[336698096,1725037872228,-500.0,0.00035507,31]
[336698097,1725037872237,-3613.33,0.00035507,31]
[336698098,1725037872246,-500.0,0.00035507,31]
[336698099,1725037872256,-2698.9,0.00035507,31]
[336698100,1725037872270,-500.0,0.00035507,31]
[336698101,1725037872279,-1467.65,0.00035507,31]
[336698102,1725037872289,-500.0,0.00035507,31]
[336698103,1725037872299,-500.0,0.00035507,31]
[336698104,1725037872308,-512.91,0.00035507,31]
[336698105,1725037872317,-500.0,0.00035507,31]
[336698106,1725037872326,-3269.05,0.00035507,31]
[336698107,1725037872336,-500.0,0.00035507,31]
[336698108,1725037872345,-3359.91,0.00035524,31]
[336698109,1725037872357,-500.0,0.00035524,31]
[336698110,1725037872371,-11661.59,0.00035524,8]
[336698111,1725037872381,-1201.25,0.00035524,21]
[336698112,1725037872390,-1752.44,0.00035524,31]
[336698113,1725037872400,-3300.83,0.00035524,31]
[336698114,1725037872409,-500.0,0.00035524,31]
[336698115,1725037872419,-500.0,0.00035524,31]
[336698116,1725037872428,-500.0,0.00035524,31]
[336698117,1725037872436,-1703.07,0.00035524,31]
[336698118,1725037872446,-500.0,0.00035524,31]
[336698119,1725037872457,-500.0,0.00035524,31]
[336698120,1725037872467,-520.52677227,0.00035524,31]
[336698121,1725037872477,-500.0,0.00035524,31]
[336698122,1725037872486,-500.0,0.00035524,31]
[336698123,1725037872498,-500.0,0.00035524,31]
[336698124,1725037872507,-500.0,0.00035524,31]
[336698125,1725037872527,-500.0,0.00035524,31]
[336698126,1725037872536,-500.0,0.00035524,31]
[336698127,1725037872545,-1771.42,0.00035524,31]
[336698128,1725037872554,-500.0,0.00035524,31]
[336698129,1725037872564,-1180.2,0.00035524,31]
[336698130,1725037872573,-500.0,0.00035524,31]
[336698131,1725037872582,-500.0,0.00035524,31]
[336698132,1725037872592,-500.0,0.00035524,31]
[336698133,1725037872602,-500.0,0.00035524,31]
[336698134,1725037872611,-500.0,0.00035524,31]
[336698135,1725037872621,-500.0,0.00035524,31]
[336698136,1725037872630,-500.0,0.00035524,31]
[336698137,1725037872639,-1386.61,0.00035524,31]
[336698138,1725037872649,-500.0,0.00035524,31]
[336698139,1725037872659,-500.0,0.00035524,31]
[336698140,1725037872669,-3222.07,0.00035524,31]
[336698141,1725037872678,-178.48709143,0.00035524,31]
[336698142,1725037872689,-500.0,0.00035524,31]
[336698143,1725037872698,-500.0,0.00035524,31]
[336698144,1725037872708,-500.0,0.00035524,31]
[336698145,1725037872718,-500.0,0.00035524,31]
[336698146,1725037872727,-500.0,0.00035524,31]
[336698147,1725037872737,-500.0,0.00035524,31]
[336698148,1725037872747,-500.0,0.00035524,31]
[336698149,1725037872757,-151.0,0.00035559,14]
[336698150,1725037872773,-151.0,0.00035559,14]
[336698151,1725037872783,-207.8512623,0.00035563,2]
[336698152,1725037872793,-153.0,0.00035583,2]
[336698153,1725037872802,-153.0,0.00035583,2]
[336698154,1725037872813,-153.0,0.00035583,2]
[336698155,1725037872823,-153.0,0.00035583,2]
[336698156,1725037872832,-151.0,0.0003559,14]
[336698157,1725037872842,-151.0,0.0003559,14]
[336698158,1725037872852,-500.0,0.00035598,31]
[336698159,1725037872862,-500.0,0.00035598,31]
[336698160,1725037872872,-500.0,0.00035598,31]
[336698161,1725037872882,-500.0,0.00035598,31]
[336698162,1725037872892,-330.37,0.00035598,31]
[336698163,1725037872901,-500.0,0.00035598,31]
[336698164,1725037872911,-500.0,0.00035598,31]
[336698165,1725037872920,-500.0,0.00035598,31]
[336698166,1725037872930,-500.0,0.00035598,31]
[336698167,1725037872941,-500.0,0.00035598,31]
[336698168,1725037872951,-500.0,0.00035598,31]
[336698170,1725037872961,-506.59497658,0.00035598,31]
[336698171,1725037872971,-500.0,0.00035598,31]
[336698172,1725037872983,-500.0,0.00035598,31]
[336698173,1725037872994,-500.0,0.00035598,31]
[336698174,1725037873003,-192.38666041,0.00035598,31]
[336698175,1725037873016,-500.0,0.00035598,31]
[336698176,1725037873026,-500.0,0.00035598,31]
[336698177,1725037873036,-535.55,0.00035598,31]
[336698178,1725037873047,-500.0,0.00035598,31]
[336698179,1725037873057,-247.01205056,0.00035598,31]
[336698180,1725037873068,-595.54598908,0.00035598,31]
[336698181,1725037873079,-500.0,0.00035598,31]
[336698182,1725037873088,-500.0,0.00035598,31]
[336698183,1725037873097,-608.63626124,0.00035598,31]
[336698184,1725037873107,-500.0,0.00035598,31]
[336698185,1725037873117,-500.0,0.00035598,31]
[336698186,1725037873127,-500.0,0.00035598,31]
[336698187,1725037873137,-500.0,0.00035598,31]
[336698188,1725037873147,-500.0,0.00035598,31]
[336698189,1725037873156,-504.34855057,0.00035598,31]
[336698190,1725037873165,-500.0,0.00035598,31]
[336698191,1725037873175,-500.0,0.00035598,31]
[336698192,1725037873184,-595.74657419,0.00035598,31]
[336698193,1725037873194,-500.0,0.00035599,2]
[336698194,1725037873203,-500.0,0.00035599,2]
[336698195,1725037873213,-1435.83078771,0.00035599,5]
[336698196,1725037873223,-15608.22855407,0.000356,30]
[336698197,1725037873232,-41532.27082212,0.000356,30]
[336698199,1725037873508,-28208.17670121,0.000356,30]
[336698257,1725038328958,164.200342,0.00014247,2]
[336698287,1725038921978,1405.91391567,0.00014,2]
[336698288,1725038922356,21252.43346867,0.0001,2]
[336698289,1725038946892,164.200342,0.00014247,2]
[336698339,1725039038236,-3883.82093431,0.00018,2]
[336698340,1725039038258,-443.65779587,0.00018,2]
[336698347,1725039040056,-5442.3104165,0.00018,2]
[336698348,1725039040066,-309.280804,0.0001863,2]
[336698349,1725039040076,-164.200342,0.00022429,2]
[336698350,1725039040087,-309.280804,0.00024859,2]
[336698351,1725039040097,-500.0,0.00028419,2]
[336698352,1725039040106,-1076.11250587,0.0003,7]
[336698353,1725039040116,-869.30273367,0.0003,15]
[336698355,1725039040126,-601.65217797,0.0003,2]
[336698356,1725039040138,-1008.40744986,0.0003,7]
[336698357,1725039040147,-273.9860909,0.00030098,2]
[336698358,1725039040156,-185.028785,0.00030467,2]
[336698359,1725039040166,-164.200342,0.00030612,2]
[336698360,1725039040176,-186.0055248,0.0003065,2]
[336698361,1725039040186,-500.0,0.00030768,7]
[336698362,1725039040195,-309.280804,0.00031089,2]
[336698363,1725039040206,-185.028785,0.00032054,2]
[336698364,1725039040216,-500.0,0.00032231,7]
[336698365,1725039040226,-150.0,0.00032476,14]
[336698366,1725039040235,-150.0,0.00032476,14]
[336698367,1725039040244,-200.0,0.00032476,14]
[336698368,1725039040254,-9365.6585824,0.00032476,7]
[336698369,1725039040264,-207.8512623,0.0003392,2]
[336698370,1725039040273,-500.0,0.00034453,7]
[336698371,1725039040283,-500.0,0.00034484,7]
[336698372,1725039040292,-927.19376512,0.00034486,2]
[336698373,1725039040302,-927.19376511,0.00034511,2]
[336698374,1725039040311,-927.19376511,0.00034536,2]
[336698375,1725039040321,-927.19376511,0.0003456,2]
[336698376,1725039040331,-500.0,0.00034565,31]
[336698377,1725039040340,-500.0,0.00034565,31]
[336698378,1725039040349,-18709.167,0.00034566,5]
[336698379,1725039040359,-3633.94,0.00034569,3]
[336698380,1725039040368,-2046.89380459,0.00034569,3]
[336698381,1725039040387,-981.38619541,0.00034569,3]
[336698382,1725039040397,-2829.21,0.00034575,31]
[336698383,1725039040406,-6.53928141,0.00034575,31]
[336698384,1725039040418,-493.46071859,0.00034575,31]
[336698385,1725039040428,-901.81,0.00034575,31]
[336698386,1725039040438,-500.0,0.00034575,31]
[336698387,1725039040448,-500.0,0.00034575,31]
[336698388,1725039040457,-3011.11,0.00034575,31]
[336698389,1725039040469,-2249.09,0.00034575,31]
[336698390,1725039040479,-500.0,0.00034575,31]
[336698391,1725039040488,-500.0,0.00034575,31]
[336698392,1725039040497,-500.0,0.00034575,31]
[336698393,1725039040507,-500.0,0.00034575,31]
[336698394,1725039040516,-500.0,0.00034575,31]
[336698395,1725039040526,-500.0,0.00034575,31]
[336698396,1725039040536,-500.0,0.00034575,31]
[336698397,1725039040546,-2091.70131084,0.00034576,2]
[336698398,1725039040556,-500.0,0.00034578,31]
[336698399,1725039040565,-500.0,0.00034578,31]
[336698400,1725039040575,-3871.85,0.00034578,31]
[336698401,1725039040584,-500.0,0.00034578,31]
[336698402,1725039040594,-500.0,0.00034578,31]
[336698403,1725039040603,-2513.02,0.00034578,31]
[336698404,1725039040613,-500.0,0.00034578,31]
[336698405,1725039040622,-500.0,0.00034578,31]
[336698406,1725039040801,-500.0,0.00034578,31]
[336698407,1725039040811,-1243.87,0.00034578,31]
[336698408,1725039040821,-500.0,0.00034578,7]
[336698409,1725039040831,-500.0,0.00034578,7]
[336698410,1725039040840,-500.0,0.00034578,7]
[336698411,1725039040850,-438.67277865,0.00034578,7]
[336698412,1725039040861,-500.0,0.00034578,7]
[336698413,1725039040871,-500.0,0.00034578,7]
[336698414,1725039040887,-500.0,0.00034578,7]
[336698415,1725039040897,-500.0,0.00034578,7]
[336698416,1725039040907,-500.0,0.00034578,7]
[336698417,1725039040916,-500.0,0.00034578,7]
[336698418,1725039040925,-383.6733025,0.00034578,7]
[336698419,1725039040935,-358.62797258,0.00034578,7]
[336698420,1725039040944,-500.0,0.00034578,7]
[336698421,1725039040953,-66687.78385983,0.00034579,4]
[336698426,1725039042994,-455.58810276,0.00034565,31]
[336698427,1725039043006,-95.10458856,0.00034565,31]
[336698428,1725039043016,-618.98540167,0.00034565,31]
[336698429,1725039043026,-500.0,0.00034578,31]
[336698430,1725039043035,-17495.07700977,0.00034579,4]
[336698431,1725039043055,-4859.1567245,0.00034579,4]
[336698432,1725039043066,-163.66168048,0.0003458,7]
[336698433,1725039043075,-500.0,0.0003458,7]
[336698434,1725039043085,-500.0,0.0003458,7]
[336698435,1725039043094,-500.0,0.0003458,7]
[336698436,1725039043103,-500.0,0.0003458,7]
[336698437,1725039043113,-215.34089552,0.0003458,7]
[336698438,1725039043122,-500.0,0.0003458,7]
[336698440,1725039043135,-500.0,0.0003458,7]
[336698441,1725039043144,-500.0,0.0003458,7]
[336698442,1725039043153,-500.0,0.0003458,7]
[336698443,1725039043164,-500.0,0.0003458,31]
[336698445,1725039043173,-500.0,0.0003458,31]
[336698447,1725039043183,-63708.72499249,0.0003458,4]
[336698473,1725039379899,4714.184451,0.0002,120]
[336698507,1725039497788,185.6698254,0.00014247,2]
[336698559,1725039996130,-171.64595356,0.0001863,2]
[336698591,1725040189408,164.200342,0.00014247,2]
[336698612,1725040232137,-272.91922,0.0001863,2]
[336698613,1725040232147,-164.200342,0.00024475,2]
[336698614,1725040232159,-272.91922,0.00024859,2]
[336698615,1725040232168,-500.0,0.00027594,2]
[336698616,1725040232177,-500.0,0.00027805,2]
[336698617,1725040232187,-500.0,0.00029264,2]
[336698618,1725040232196,-500.0,0.00029368,2]
[336698619,1725040232207,-151.0,0.0003,120]
[336698620,1725040232218,-170.918497,0.00030802,2]
[336698621,1725040232229,-170.918497,0.00031031,2]
[336698622,1725040232239,-115.22326529,0.00031089,2]
[336698634,1725040238377,-157.69595471,0.00031089,2]
[336698635,1725040238387,-500.0,0.00031136,7]
[336698636,1725040238397,-170.918497,0.0003126,2]
[336698637,1725040238406,-170.918497,0.0003149,2]
[336698638,1725040238416,-170.918497,0.00031719,2]
[336698639,1725040238426,-151.0,0.00031863,120]
[336698640,1725040238437,-500.0,0.00031909,7]
[336698641,1725040238446,-170.918497,0.00031948,2]
[336698642,1725040238456,-170.918497,0.00032178,2]
[336698643,1725040238465,-170.918497,0.00032407,2]
[336698644,1725040238475,-150.0,0.00032459,14]
[336698646,1725040238484,-150.0,0.00032459,14]
[336698647,1725040238494,-200.0,0.00032459,14]
[336698648,1725040238504,-151.0,0.00033726,120]
[336698649,1725040238513,-500.0,0.00033827,5]
[336698650,1725040238522,-500.0,0.0003395,7]
[336698651,1725040238533,-10000.0,0.00034,15]
[336698652,1725040238542,-1000.0,0.00034,34]
[336698653,1725040238551,-153.0,0.00034112,2]
[336698654,1725040238562,-153.0,0.00034112,2]
[336698655,1725040238572,-153.0,0.00034112,2]
[336698656,1725040238582,-5196.25171994,0.0003434,2]
[336698657,1725040238593,-1236.81679539,0.00034355,2]
[336698658,1725040238602,-1236.81679538,0.0003436,2]
[336698659,1725040238611,-1236.81679538,0.00034364,2]
[336698660,1725040238621,-1236.81679538,0.00034369,2]
[336698661,1725040238631,-1236.81679538,0.00034373,2]
[336698662,1725040238641,-567.1,0.00034444,3]
[336698663,1725040238651,-6801.16,0.00034444,3]
[336698664,1725040238661,-5667.63,0.00034444,3]
[336698665,1725040238671,-695.834723,0.00034452,2]
[336698666,1725040238681,-317.62533029,0.00034453,7]
[336698667,1725040238690,-244.70704599,0.00034453,7]
[336698668,1725040238699,-209.29703361,0.00034453,7]
[336698669,1725040238709,-117916.941113,0.00034454,4]
[336698670,1725040238718,-1873.73726723,0.00034455,5]
[336698671,1725040238728,-117916.941113,0.00034455,4]
[336698672,1725040238738,-500.0,0.00034458,31]
[336698673,1725040238748,-2878.56,0.00034458,31]
[336698674,1725040238758,-500.0,0.00034458,31]
[336698675,1725040238771,-389.73523834,0.00034458,31]
[336698676,1725040238782,-500.0,0.00034458,31]
[336698677,1725040238791,-210.66146475,0.00034458,31]
[336698678,1725040238801,-946.72,0.00034458,31]
[336698679,1725040238810,-500.0,0.00034458,31]
[336698680,1725040238821,-500.0,0.00034458,31]
[336698681,1725040238831,-500.0,0.00034458,31]
[336698682,1725040238841,-3904.83,0.00034458,31]
[336698683,1725040238853,-500.0,0.00034458,31]
[336698684,1725040238862,-500.0,0.00034458,31]
[336698685,1725040238871,-3175.16,0.00034458,31]
[336698686,1725040238881,-2640.46,0.00034458,31]
[336698687,1725040238890,-2373.48,0.00034458,31]
[336698688,1725040238899,-500.0,0.00034458,31]
[336698689,1725040238909,-500.0,0.00034458,31]
[336698690,1725040238918,-500.0,0.00034458,31]
[336698691,1725040238927,-500.0,0.00034458,31]
[336698692,1725040238938,-500.0,0.00034458,31]
[336698693,1725040238948,-500.0,0.00034458,31]
[336698694,1725040238958,-1307.28,0.00034458,31]
[336698695,1725040238967,-500.0,0.00034458,31]
[336698696,1725040238977,-504.54,0.00034458,31]
[336698697,1725040238986,-500.0,0.00034458,2]
[336698698,1725040238995,-500.0,0.00034458,31]
[336698699,1725040239005,-3031.78,0.00034458,31]
[336698700,1725040239015,-500.0,0.00034458,31]
[336698701,1725040239025,-228.91564686,0.00034458,7]
[336698702,1725040239036,-468.354605,0.00034458,7]
[336698703,1725040239048,-500.0,0.00034458,7]
[336698704,1725040239058,-500.0,0.00034458,7]
[336698705,1725040239067,-175.94004977,0.00034458,7]
[336698706,1725040239077,-500.0,0.00034458,7]
[336698707,1725040239088,-500.0,0.00034458,7]
[336698708,1725040239098,-500.0,0.00034458,7]
[336698709,1725040239107,-500.0,0.00034458,7]
[336698710,1725040239117,-500.0,0.00034458,7]
[336698711,1725040239127,-500.0,0.00034458,7]
[336698712,1725040239136,-2836.05,0.00034458,31]
[336698713,1725040239145,-500.0,0.00034459,31]
[336698714,1725040239154,-500.0,0.00034459,31]
[336698715,1725040239164,-313.57798138,0.00034459,31]
[336698716,1725040239174,-500.0,0.00034459,31]
[336698717,1725040239183,-500.0,0.00034459,31]
[336698718,1725040239193,-500.0,0.00034459,31]
[336698719,1725040239202,-500.0,0.00034459,31]
[336698720,1725040239212,-508.83337001,0.00034459,31]
[336698721,1725040239222,-500.0,0.00034459,31]
[336698722,1725040239232,-503.43996752,0.00034459,31]
[336698723,1725040239241,-500.0,0.00034459,31]
[336698724,1725040239251,-500.0,0.00034459,31]
[336698725,1725040239260,-150.0,0.00034459,31]
[336698726,1725040239270,-500.0,0.00034459,31]
[336698727,1725040239279,-500.0,0.00034459,31]
[336698728,1725040239289,-500.0,0.00034459,31]
[336698729,1725040239298,-500.0,0.00034459,31]
[336698730,1725040239307,-500.0,0.00034459,31]
[336698731,1725040239317,-500.0,0.00034459,31]
[336698732,1725040239327,-500.0,0.00034459,31]
[336698733,1725040239337,-500.0,0.00034459,31]
[336698734,1725040239346,-500.0,0.00034459,31]
[336698735,1725040239355,-500.0,0.00034459,31]
[336698736,1725040239365,-500.0,0.00034459,31]
[336698737,1725040239374,-500.0,0.00034459,31]
[336698738,1725040239384,-500.0,0.00034459,31]
[336698739,1725040239394,-501.01595461,0.00034459,31]
[336698740,1725040239403,-500.0,0.00034459,31]
[336698741,1725040239412,-500.0,0.00034459,31]
[336698742,1725040239421,-500.0,0.00034459,31]
[336698743,1725040239430,-500.0,0.00034459,31]
[336698744,1725040239440,-500.0,0.00034459,31]
[336698745,1725040239450,-500.0,0.00034459,31]
[336698746,1725040239459,-500.0,0.00034459,31]
[336698747,1725040239469,-500.0,0.00034459,31]
[336698748,1725040239479,-500.0,0.00034459,31]
[336698749,1725040239491,-497.94773447,0.00034459,31]
[336698750,1725040239502,-500.0,0.00034459,31]
[336698751,1725040239512,-500.0,0.00034459,31]
[336698752,1725040239521,-500.0,0.00034459,31]
[336698753,1725040239531,-493.03358021,0.00034459,31]
[336698754,1725040239541,-500.0,0.00034459,31]
[336698755,1725040239551,-500.0,0.00034459,31]
[336698756,1725040239563,-500.0,0.00034459,31]
[336698757,1725040239574,-500.0,0.00034459,31]
[336698758,1725040239585,-500.0,0.00034459,31]
[336698759,1725040239595,-500.0,0.00034459,31]
[336698760,1725040239605,-379.10228694,0.00034459,31]
[336698762,1725040239615,-500.0,0.00034459,31]
[336698764,1725040239625,-500.0,0.00034459,31]
[336698766,1725040239634,-500.0,0.00034459,31]
[336698767,1725040239644,-500.0,0.00034459,31]
[336698768,1725040239654,-216.03856293,0.00034459,31]
[336698769,1725040239664,-500.0,0.00034459,31]
[336698771,1725040239673,-500.0,0.00034459,31]
[336698772,1725040239683,-500.0,0.00034459,31]
[336698773,1725040239692,-500.0,0.00034459,31]
[336698774,1725040239702,-500.0,0.00034459,31]
[336698775,1725040239711,-500.0,0.00034459,31]
[336698776,1725040239721,-604.46407347,0.00034459,31]
[336698777,1725040239730,-502.98242271,0.00034459,31]
[336698778,1725040239739,-500.0,0.00034459,31]
[336698779,1725040239749,-500.0,0.00034459,31]
[336698780,1725040239758,-500.0,0.00034459,31]
[336698781,1725040239767,-500.0,0.00034459,31]
[336698782,1725040239780,-500.0,0.00034459,31]
[336698783,1725040239788,-500.0,0.00034459,31]
[336698784,1725040239798,-500.0,0.00034459,31]
[336698785,1725040239808,-206.16780181,0.00034459,31]
[336698786,1725040239818,-500.0,0.00034459,31]
[336698787,1725040239828,-500.0,0.00034459,31]
[336698788,1725040239838,-500.0,0.00034459,31]
[336698789,1725040239848,-500.98058033,0.00034459,31]
[336698791,1725040239859,-653.44,0.00034459,31]
[336698792,1725040239871,-501.31249848,0.00034459,31]
[336698793,1725040239881,-500.0,0.00034459,31]
[336698794,1725040239890,-500.0,0.00034459,31]
[336698795,1725040239900,-500.0,0.00034459,31]
[336698796,1725040239909,-494.0148376,0.00034459,31]
[336698797,1725040239920,-500.0,0.00034459,31]
[336698798,1725040239930,-500.0,0.00034459,31]
[336698799,1725040239942,-500.0,0.00034459,31]
[336698800,1725040239953,-500.0,0.00034459,31]
[336698801,1725040239962,-500.0,0.00034459,31]
[336698803,1725040239972,-500.0,0.00034459,31]
[336698804,1725040239982,-500.0,0.00034459,31]
[336698805,1725040239991,-500.0,0.00034459,31]
[336698806,1725040240001,-500.0,0.00034459,31]
[336698807,1725040240010,-500.0,0.00034459,31]
[336698808,1725040240020,-500.0,0.00034459,31]
[336698809,1725040240032,-500.0,0.00034459,31]
[336698811,1725040240042,-500.0,0.00034459,31]
[336698813,1725040240052,-502.06743067,0.00034459,31]
[336698815,1725040240063,-500.30875761,0.00034459,31]
[336698816,1725040240073,-500.0,0.00034459,31]
[336698817,1725040240082,-500.0,0.00034459,31]
[336698818,1725040240092,-500.0,0.00034459,31]
[336698820,1725040240102,-500.0,0.00034459,31]
[336698822,1725040240112,-500.0,0.00034459,31]
[336698824,1725040240123,-500.90532169,0.00034459,31]
[336698825,1725040240135,-500.0,0.00034459,31]
[336698826,1725040240144,-500.0,0.00034459,31]
[336698827,1725040240153,-500.0,0.00034459,31]
[336698829,1725040240164,-500.0,0.00034459,7]
[336698830,1725040240174,-500.0,0.00034459,31]
[336698831,1725040240184,-500.0,0.00034459,31]
[336698832,1725040240193,-500.0,0.00034459,31]
[336698833,1725040240202,-500.0,0.00034459,31]
[336698834,1725040240212,-500.0,0.00034459,2]
[336698835,1725040240222,-500.17822503,0.00034459,31]
[336698836,1725040240231,-500.0,0.00034459,31]
[336698837,1725040240241,-500.0,0.00034459,31]
[336698838,1725040240250,-500.0,0.00034459,31]
[336698839,1725040240260,-500.0,0.00034459,31]
[336698840,1725040240270,-501.17789383,0.00034459,31]
[336698841,1725040240281,-500.0,0.00034459,31]
[336698842,1725040240290,-500.0,0.00034459,31]
[336698843,1725040240300,-503.53144977,0.00034459,31]
[336698844,1725040240310,-500.0,0.00034459,31]
[336698845,1725040240320,-1750.0,0.00034459,31]
[336698846,1725040240329,-500.0,0.00034459,31]
[336698847,1725040240340,-500.0,0.00034459,31]
[336698849,1725040240350,-500.65076814,0.00034459,31]
[336698851,1725040240359,-500.0,0.00034459,31]
[336698852,1725040240369,-500.0,0.00034459,31]
[336698853,1725040240379,-500.0,0.00034464,31]